Workbook

Sheet Prairie City
A1: Building Permit
A2: Side 2 of 2 | D2: Address:
A3: Prairie City
A4: ZONING:
A5: New Construction: | B5: X | C5: Addition: | E5: Change of Occ.:
A6: Remodel: | C6: Repair: | E6: Demolition:
A7: Type of use: | B7: Residential | C7: Const Type: | D7: VB | E7: Occ. Group: | F7: R
A8: Description of Work | B8: New Home
H9: **All #'s for single family dwellings | L9: Sheds, fences, decks, utilities
A10: LOCATION | B10: Sq. ft. | C10: X | D10: Valuation | E10: ZONING | H10: R-1 | I10: R - 1A | J10: R-2 | L10: Done By City
A11: 1st Floor | C11: 116.15 | D11: =B11*C11 -> 0 | E11: Front Setback: | H11: 25 | I11: 25 | J11: 25
A12: 2nd Floor | C12: 116.15 | D12: =B12*C12 -> 0 | E12: Rear Setback: | H12: 30 | I12: 30 | J12: 30
A13: 3rd Floor | C13: 116.15 | D13: 0 | E13: Side 1 Setback: | H13: 8 | I13: 8 | J13: 8
A14: Basement Finished | C14: 42 | D14: 0 | E14: Side 2 Setback: | H14: 8 | I14: 8 | J14: 8
A15: Basement Unfinished | C15: 21 | D15: 0 | E15: # of Req Parking:
A16: Garage/Carport | C16: 45.92 | D16: 0 | E16: # Handicapped Spots:
A17: Deck/Porch | C17: 30 | D17: 0
D18: 0
A19: TOTAL | D19: =SUM(D11:D18) -> 0
A20: BUILDING PERMIT FEES | D20: Comments: | I20: Notes:
A21: Basic Permit Fee: | B21: =L40 -> 0 | I21: BY CITY Water Hook Up = $100, meter $250, irrigation $250
A22: Plan Review Fee: | I22: BY CITY Sewer Hook Up = $225
A23: Sidewalk Fee: | I23: BY CITY New Home Approach/Sidewalk Fee = $50
A24: Approach Fee: | I24: Fence, shed, deck and garages inspected by City Staff
A25: UTILITY FEES
A26: Sewer Con. Fee:
A27: Sewer Dist, Fee: | I27: **If needed plan review fee is
A28: Storm Utility Fee: | I28: =B21*0.65 -> 0
A29: Water Connect Fee:
A30: Water Conn. Outside City:
A31: Water Meter Fee:
A32: Water Meter Irrigation Fee:
A34: TOTAL FEE: | B34: =SUM(B21:C33) -> 0
K40: =ROUNDUP(D19,-3) -> 0 | L40: =SUMIF(K44:K1043,K40,L44:L1043) -> 0
K42: VAL | L42: PERMIT FEE
K43: 1000 | L43: 1
K44: 2000 | L44: 1
K45: 2001 | L45: 75.5
K46: 3000 | L46: 75.5
K47: 4000 | L47: =L46+12.5 -> 88
K48: 5000 | L48: =L47+12.5 -> 100.5
K49: 6000 | L49: 113
K50: 7000 | L50: 125.5
K51: =K50+1000 -> 8000 | L51: 138
K52: =K51+1000 -> 9000 | L52: 150
K53: 10000 | L53: 163
K54: 11000 | L54: 175.5
K55: 12000 | L55: 188
K56: 13000 | L56: 200.5
K57: 14000 | L57: 213
K58: 15000 | L58: 225.5
K59: 16000 | L59: 238
K60: 17000 | L60: 250.5
K61: 18000 | L61: 263
K62: 19000 | L62: 275.5
K63: 20000 | L63: 288
K64: 21000 | L64: 300.5
K65: 22000 | L65: 313
K66: 23000 | L66: 325.5
K67: 24000 | L67: 338
K68: 25000 | L68: 350.5
K69: =K68+1000 -> 26000 | L69: 361
K70: 27000 | L70: =L69+9 -> 370
K71: 28000 | L71: =L70+9 -> 379
K72: 29000 | L72: 388
K73: 30000 | L73: 397
K74: 31000 | L74: 406
K75: 32000 | L75: 415
K76: 33000 | L76: 424
K77: 34000 | L77: 433
K78: 35000 | L78: 442
K79: 36000 | L79: 451
K80: 37000 | L80: 460
K81: 38000 | L81: 469
K82: 39000 | L82: 478
K83: 40000 | L83: 487
K84: 41000 | L84: 496
K85: 42000 | L85: 505
K86: 43000 | L86: 514
K87: 44000 | L87: 523
K88: 45000 | L88: 532
K89: 46000 | L89: 541
K90: 47000 | L90: 550
K91: 48000 | L91: 559
K92: 49000 | L92: 568
K93: 50000 | L93: 577
K94: 51000 | L94: =L93+9.25 -> 586.25
K95: 52000 | L95: =L94+6.25 -> 592.5
K96: 53000 | L96: 598.75
K97: 54000 | L97: 605
K98: 55000 | L98: 611.25
K99: 56000 | L99: 617.5
K100: 57000 | L100: 623.75
K101: 58000 | L101: 630
K102: 59000 | L102: 636.25
K103: 60000 | L103: 642.5
K104: 61000 | L104: 648.75
K105: 62000 | L105: 655
K106: 63000 | L106: 661.25
K107: 64000 | L107: 667.5
K108: 65000 | L108: 673.75
K109: 66000 | L109: 680
K110: 67000 | L110: 686.25
K111: 68000 | L111: 692.5
K112: 69000 | L112: 698.75
K113: 70000 | L113: 705
K114: 71000 | L114: 711.25
K115: 72000 | L115: 717.5
K116: =K115+1000 -> 73000 | L116: 723.75
K117: 74000 | L117: 730
K118: 75000 | L118: 736.25
K119: 76000 | L119: 742.5
K120: 77000 | L120: 748.75
K121: 78000 | L121: 755
K122: 79000 | L122: 761.25
K123: 80000 | L123: 767.5
K124: 81000 | L124: 773.75
K125: 82000 | L125: 780
K126: 83000 | L126: 786.25
K127: 84000 | L127: 792.5
K128: 85000 | L128: 798.75
K129: 86000 | L129: 805
K130: 87000 | L130: 811.25
K131: 88000 | L131: 817.5
K132: 89000 | L132: 823.75
K133: 90000 | L133: 830
K134: 91000 | L134: 836.25
K135: 92000 | L135: 842.5
K136: 93000 | L136: 848.75
K137: 94000 | L137: 855
K138: 95000 | L138: 861.25
K139: 96000 | L139: 867.5
K140: 97000 | L140: 873.75
K141: 98000 | L141: 880
K142: 99000 | L142: 886.25
K143: 100000 | L143: 892.5
K144: 101000 | L144: 900
K145: 102000 | L145: =L144+5 -> 905
K146: 103000 | L146: =L145+5 -> 910
K147: 104000 | L147: 915
K148: 105000 | L148: 920
K149: 106000 | L149: 925
K150: 107000 | L150: 930
K151: 108000 | L151: 935
K152: 109000 | L152: 940
K153: 110000 | L153: 945
K154: 111000 | L154: 950
K155: 112000 | L155: 955
K156: 113000 | L156: 960
K157: 114000 | L157: 965
K158: 115000 | L158: 970
K159: 116000 | L159: 975
K160: 117000 | L160: 980
K161: 118000 | L161: 985
K162: 119000 | L162: 990
K163: 120000 | L163: 995
K164: 121000 | L164: 1000
K165: 122000 | L165: 1005
K166: 123000 | L166: 1010
K167: 124000 | L167: 1015
K168: 125000 | L168: 1020
K169: 126000 | L169: 1025
K170: 127000 | L170: 1030
K171: 128000 | L171: 1035
K172: 129000 | L172: 1040
K173: 130000 | L173: 1045
K174: 131000 | L174: 1050
K175: 132000 | L175: 1055
K176: 133000 | L176: 1060
K177: 134000 | L177: 1065
K178: 135000 | L178: 1070
K179: 136000 | L179: 1075
K180: =K179+1000 -> 137000 | L180: 1080
K181: 138000 | L181: 1085
K182: 139000 | L182: 1090
K183: 140000 | L183: 1095
K184: 141000 | L184: 1100
K185: 142000 | L185: 1105
K186: 143000 | L186: 1110
K187: 144000 | L187: 1115
K188: 145000 | L188: 1120
K189: 146000 | L189: 1125
K190: 147000 | L190: 1130
K191: 148000 | L191: 1135
K192: 149000 | L192: 1140
K193: 150000 | L193: 1145
K194: 151000 | L194: 1150
K195: 152000 | L195: 1155
K196: 153000 | L196: 1160
K197: 154000 | L197: 1165
K198: 155000 | L198: 1170
K199: 156000 | L199: 1175
K200: 157000 | L200: 1180
K201: 158000 | L201: 1185
K202: 159000 | L202: 1190
K203: 160000 | L203: 1195
K204: 161000 | L204: 1200
K205: 162000 | L205: 1205
K206: 163000 | L206: 1210
K207: 164000 | L207: 1215
... 836 more rows
